bitfinex-derivatives/quotes_SOLF0:USTF0_20250905
["timestamp","ask_amount","ask_price","bid_price","bid_amount"]
[1757032306412,12.89259774,202.67,202.61,7.81]
[1757032306606,7.38,202.67,202.63,7.81]
[1757032307011,7.38,202.67,202.63,7.84403818]
[1757032308612,7.38,202.67,202.64,1.37400175]
[1757032309006,7.52,202.69,202.64,1.37400175]
[1757032309211,8.89400175,202.72,202.66,1.37400175]
[1757032311311,1.37400175,202.68,202.63,0.03403818]
[1757032311511,7.52,202.67,202.63,0.03403818]
[1757032312212,0.85903655,202.74,202.63,0.03403818]
[1757032312412,7.52,202.67,202.63,0.03403818]
[1757032312808,1.37400175,202.68,202.63,0.03403818]
[1757032313017,7.52,202.67,202.63,0.03403818]
[1757032313219,1.37400175,202.68,202.63,0.03403818]
[1757032313413,7.52,202.67,202.63,0.03403818]
[1757032314214,1.37400175,202.68,202.63,0.03403818]
[1757032314417,7.52,202.67,202.63,0.03403818]
[1757032314717,1.37400175,202.68,202.63,0.03403818]
[1757032315119,7.52,202.67,202.63,0.03403818]
[1757032315419,1.37400175,202.68,202.63,0.03403818]
[1757032315815,7.52,202.67,202.63,0.03403818]
[1757032316015,1.37400175,202.68,202.63,0.03403818]
[1757032316417,7.52,202.67,202.63,0.03403818]
[1757032316814,1.37400175,202.68,202.63,0.03403818]
[1757032317119,7.52,202.67,202.63,0.03403818]
[1757032317315,1.37400175,202.68,202.63,0.03403818]
[1757032317813,7.52,202.67,202.63,0.03403818]
[1757032318320,1.37400175,202.68,202.63,0.03403818]
[1757032318717,7.52,202.67,202.63,0.03403818]
[1757032319019,1.37400175,202.68,202.63,0.03403818]
[1757032319420,14.34,202.73,202.63,0.03403818]
[1757032319421,1.37400175,202.66,202.63,0.03403818]
[1757032319723,7.52,202.65,202.63,0.03403818]
[1757032320015,8.89400175,202.64,202.63,0.03403818]
[1757032321325,8.89400175,202.64,202.52,7.62]
[1757032321529,7.52,202.57,202.52,7.62]
[1757032321718,8.89400175,202.58,202.52,7.62]
[1757032321915,1.37400175,202.56,202.49,8.99400175]
[1757032322316,0.03309955,202.55,202.49,8.99400175]
[1757032324421,1.37400175,202.54,202.47,1.37400175]
[1757032324622,1.37400175,202.52,202.45,8.99400175]
[1757032325219,1.37400175,202.5,202.45,7.62]
[1757032325530,14.82,202.63,202.46,0.03354026]
[1757032325531,7.52,202.47,202.46,0.03354026]
[1757032325923,7.52,202.47,202.41,7.62]
[1757032327923,1.37400175,202.49,202.42,1.37400175]
[1757032328130,1.37400175,202.49,202.43,7.62]
[1757032328428,0.03413225,202.48,202.43,7.62]
[1757032329028,0.03413225,202.48,202.42,1.37400175]
[1757032329226,0.03413225,202.48,202.43,7.62]
[1757032329428,0.03413225,202.48,202.42,8.99400175]
[1757032332231,1.37400175,202.45,202.37,1.37400175]
[1757032332429,1.37400175,202.43,202.37,1.37400175]
[1757032332631,7.52,202.44,202.37,1.37400175]
[1757032332928,0.03644579,202.42,202.37,1.37400175]
[1757032333129,0.03644579,202.42,202.38,7.62]
[1757032333730,0.03644579,202.42,202.37,1.37400175]
[1757032333923,0.03644579,202.42,202.38,7.62]
[1757032334126,0.03644579,202.42,202.37,1.37400175]
[1757032334330,0.03644579,202.42,202.38,7.62]
[1757032334532,0.03644579,202.42,202.37,1.37400175]
[1757032335530,0.03644579,202.42,202.34,2.14890116]
[1757032335834,0.03644579,202.42,202.35,7.62]
[1757032337137,0.03644579,202.42,202.38,7.62]
[1757032337534,0.03644579,202.42,202.37,2.14890116]
[1757032337738,0.03644579,202.42,202.38,8.19]
[1757032338144,0.03644579,202.42,202.37,2.14890116]
[1757032338339,0.03644579,202.42,202.38,8.19]
[1757032338740,0.03644579,202.42,202.37,2.14890116]
[1757032339135,0.03644579,202.42,202.38,8.19]
[1757032339335,0.03644579,202.42,202.37,2.14890116]
[1757032339638,0.03644579,202.42,202.38,8.19]
[1757032340136,0.03644579,202.42,202.37,2.14890116]
[1757032340334,0.03644579,202.42,202.38,8.19]
[1757032341835,0.03644579,202.42,202.37,2.14890116]
[1757032342138,0.03644579,202.42,202.38,8.19]
[1757032342435,0.03644579,202.42,202.37,2.14890116]
[1757032343340,0.03644579,202.42,202.38,8.19]
[1757032344536,0.03644579,202.42,202.37,2.14890116]
[1757032344731,0.03644579,202.42,202.38,8.19]
[1757032345142,0.03644579,202.42,202.37,2.14890116]
[1757032345344,0.03644579,202.42,202.38,8.19]
[1757032345636,0.03644579,202.42,202.37,2.14890116]
[1757032346136,0.03644579,202.42,202.38,8.19]
[1757032346538,0.03644579,202.42,202.37,2.14890116]
[1757032347043,0.03644579,202.42,202.38,8.19]
[1757032347240,0.03644579,202.42,202.37,2.14890116]
[1757032347647,7.84644579,202.42,202.38,8.19]
[1757032347837,7.84644579,202.42,202.31,318.04]
[1757032347838,2.18534695,202.42,202.31,318.04]
[1757032348048,7.81,202.41,202.31,8.19]
[1757032352747,7.81,202.38,202.28,8.19]
[1757032352942,7.81,202.35,202.28,8.19]
[1757032353348,0.03546916,202.34,202.28,8.19]
[1757032354053,0.03546916,202.34,202.24,8.19]
[1757032354054,7.81,202.33,202.24,8.19]
[1757032354751,0.03713943,202.31,202.24,8.19]
[1757032359250,0.03713943,202.31,202.14,8.58890564]
[1757032359251,7.81,202.3,202.18,8.19]
[1757032359454,7.81,202.26,202.18,8.19]
[1757032360057,9.9908692,202.24,202.18,8.19]
[1757032363456,7.84196804,202.24,202.18,8.19]
[1757032366062,0.03196804,202.24,202.18,8.19]
[1757032381067,7.61,202.23,202.18,8.19]
[1757032381862,0.03196804,202.24,202.18,8.19]
[1757032382076,7.64196804,202.24,202.18,8.19]
[1757032382673,7.61,202.21,202.18,8.19]
[1757032382877,2.14890116,202.22,202.1,21.14890116]
[1757032383174,9.75890116,202.22,202.11,7.9]
[1757032383569,0.03298533,202.18,202.11,7.9]
[1757032384173,0.03298533,202.18,202.13,2.14890116]
[1757032384475,2.14890116,202.28,202.17,7.9]
[1757032384673,2.14890116,202.25,202.17,7.9]
[1757032386274,7.61,202.27,202.17,7.9]
[1757032387776,7.61,202.24,202.17,7.9]
[1757032387972,2.14890116,202.22,202.17,7.9]
[1757032388173,7.61,202.21,202.17,7.9]
[1757032388476,2.14890116,202.22,202.17,7.9]
[1757032388677,7.61,202.21,202.17,7.9]
[1757032389080,2.14890116,202.22,202.11,7.9]
[1757032389380,2.14890116,202.24,202.11,7.9]
[1757032389582,2.14890116,202.24,202.14,7.9]
[1757032394180,14.82,202.32,202.1,17.12]
[1757032394181,9.75890116,202.29,202.17,7.9]
[1757032395070,7.61,202.29,202.17,7.9]
[1757032395275,7.61,202.29,202.19,7.9]
[1757032395469,1.37736403,202.28,202.21,1.37736403]
[1757032395675,1.37736403,202.28,202.22,7.9]
[1757032397172,7.61,202.35,202.23,1.37736403]
[1757032397376,1.37736403,202.33,202.26,7.9]
[1757032397572,5.51259774,202.37,202.29,1.37736403]
[1757032397772,1.37736403,202.36,202.3,7.9]
[1757032397972,1.37736403,202.36,202.31,0.03246699]
[1757032398178,1.37736403,202.37,202.32,7.74]
[1757032398579,1.37736403,202.37,202.31,7.77246699]
[1757032398779,1.37736403,202.37,202.31,9.14983102]
[1757032399280,7.5,202.39,202.31,9.14983102]
[1757032399482,44.94,202.4,202.34,7.74]
[1757032399483,1.37736403,202.4,202.34,7.74]
[1757032402778,7.5,202.43,202.36,7.74]
[1757032402975,7.5,202.43,202.35,1.37736403]
[1757032402976,13.01259774,202.47,202.39,1.37736403]
[1757032403180,0.0345917,202.42,202.4,7.74]
[1757032403382,0.0345917,202.42,202.41,7.7717773]
[1757032404582,0.0345917,202.42,202.41,0.0317773]
[1757032404779,7.5345917,202.42,202.41,0.0317773]
[1757032405380,8.0345917,202.42,202.34,7.74]
[1757032405683,8.87736403,202.38,202.34,7.74]
[1757032406286,8.87736403,202.38,202.32,1.37736403]
[1757032406287,1.37736403,202.38,202.33,7.74]
[1757032406578,1.37736403,202.38,202.32,1.37736403]
[1757032406885,1.41467962,202.38,202.33,7.74]
[1757032407081,1.41467962,202.38,202.32,1.37736403]
[1757032407388,1.41467962,202.38,202.35,7.74]
[1757032407389,0.03731559,202.38,202.35,7.74]
[1757032407783,0.03731559,202.38,202.32,1.37736403]
[1757032408787,0.03731559,202.38,202.32,9.11736403]
[1757032409088,0.03731559,202.38,202.32,7.74]
[1757032411687,1.37736403,202.35,202.29,7.74]
[1757032412893,1.37736403,202.35,202.29,9.11736403]
[1757032413389,1.37736403,202.35,202.29,7.74]
[1757032413589,1.37736403,202.35,202.29,9.11736403]
[1757032413795,1.37736403,202.37,202.31,1.37736403]
[1757032414692,1.37736403,202.37,202.32,7.74]
[1757032414895,1.41467962,202.38,202.31,1.37736403]
[1757032415094,1.41467962,202.38,202.32,7.74]
[1757032415290,1.41467962,202.38,202.28,318.52]
[1757032415291,0.03731559,202.38,202.33,1.37736403]
[1757032415495,0.03731559,202.38,202.34,7.74]
[1757032416000,0.03731559,202.38,202.33,1.37736403]
[1757032416702,8.91467962,202.38,202.34,7.74]
[1757032416897,7.5,202.37,202.34,7.74]
[1757032418901,8.91467962,202.38,202.34,7.74]
[1757032420101,7.53731559,202.38,202.34,7.74]
[1757032420305,0.03731559,202.38,202.33,1.37736403]
[1757032420603,0.03731559,202.38,202.36,7.74]
[1757032420792,0.03731559,202.38,202.35,1.37736403]
[1757032421102,0.03731559,202.38,202.36,7.74]
[1757032421404,0.03731559,202.38,202.35,1.37736403]
[1757032421896,0.03731559,202.38,202.36,7.74]
[1757032422202,0.03731559,202.38,202.29,7.74]
[1757032422498,7.5,202.36,202.32,7.74]
[1757032422900,7.5,202.36,202.3,1.37736403]
[1757032424503,7.5,202.36,202.29,7.74]
[1757032424703,7.5,202.36,202.3,1.37736403]
[1757032425107,1.37736403,202.35,202.29,7.74]
[1757032425607,7.5,202.34,202.28,1.37736403]
[1757032425907,1.37736403,202.33,202.29,0.0324629]
[1757032426204,7.5,202.32,202.29,7.7724629]
[1757032426405,1.41235483,202.33,202.29,0.0324629]
[1757032426606,0.0349908,202.33,202.31,7.74]
[1757032427005,0.0349908,202.33,202.3,1.37736403]
[1757032427807,0.0349908,202.33,202.31,7.97]
[1757032428010,0.0349908,202.33,202.3,1.37736403]
[1757032428507,0.0349908,202.33,202.31,7.97]
[1757032428907,0.0349908,202.33,202.3,1.37736403]
[1757032429110,0.0349908,202.33,202.31,7.97]
[1757032429303,0.0349908,202.33,202.3,1.37736403]
[1757032429606,0.0349908,202.33,202.31,7.97]
[1757032429905,0.0349908,202.33,202.3,1.37736403]
[1757032430095,0.0349908,202.33,202.31,7.97]
[1757032430298,0.0349908,202.33,202.32,9.34736403]
[1757032432004,0.0349908,202.33,202.3,9.34736403]
[1757032432200,0.0349908,202.33,202.31,7.97]
[1757032432906,0.0349908,202.33,202.3,1.37736403]
[1757032433107,0.0349908,202.33,202.31,7.97]
[1757032433997,0.0349908,202.33,202.3,7.97]
[1757032434308,0.0349908,202.33,202.29,1.40982693]
[1757032434504,0.0349908,202.33,202.3,7.97]
[1757032434904,0.0349908,202.33,202.29,1.40982693]
[1757032435101,0.0349908,202.33,202.3,7.97]
[1757032435908,7.83,202.32,202.29,0.0324629]
[1757032436711,0.0349908,202.33,202.29,0.0324629]
[1757032436910,7.83,202.32,202.29,0.0324629]
[1757032437111,7.83,202.32,202.29,8.0024629]
[1757032438412,7.83,202.31,202.29,0.0324629]
[1757032438605,9.20736403,202.3,202.29,0.0324629]
[1757032441007,7.83,202.3,202.29,0.0324629]
[1757032441215,9.20736403,202.32,202.29,0.0324629]
[1757032441415,9.20736403,202.32,202.29,8.0024629]
[1757032442112,7.83,202.32,202.29,8.0024629]
[1757032442513,0.0349908,202.33,202.29,8.0024629]
[1757032442713,7.8649908,202.33,202.29,8.0024629]
[1757032444016,0.0349908,202.33,202.3,7.97]
[1757032444720,7.8649908,202.33,202.3,7.97]
[1757032447818,7.83,202.32,202.29,0.0324629]
[1757032449321,1.37736403,202.32,202.29,0.0324629]
[1757032449522,0.0349908,202.33,202.29,0.0324629]
[1757032449523,9.20736403,202.3,202.29,0.0324629]
[1757032450616,7.83,202.3,202.29,0.0324629]
[1757032450921,9.20736403,202.32,202.29,0.0324629]
[1757032451416,7.83,202.31,202.29,0.0324629]
[1757032451616,1.37736403,202.32,202.29,8.0024629]
[1757032451821,7.8649908,202.33,202.29,8.0024629]
[1757032454021,0.0349908,202.33,202.3,1.37736403]
[1757032454321,0.0349908,202.33,202.31,7.97]
[1757032454715,0.0349908,202.33,202.32,1.37736403]
[1757032454920,0.0349908,202.33,202.32,9.34736403]
[1757032457423,0.0349908,202.33,202.32,7.97]
[1757032461627,0.0349908,202.33,202.3,7.55]
[1757032462324,0.0349908,202.33,202.29,0.0324629]
[1757032463324,0.0349908,202.33,202.3,9.69987052]
[1757032463517,0.0349908,202.33,202.31,7.55]
[1757032463923,5.51259774,202.4,202.31,7.55]
[1757032464119,7.65,202.44,202.31,7.55]
[1757032464120,5.51259774,202.41,202.34,2.14987052]
[1757032464337,5.51259774,202.41,202.35,4.66577066]
[1757032464525,5.51259774,202.42,202.36,4.66577066]
[1757032464728,5.51259774,202.42,202.35,7.55]
[1757032465027,5.51259774,202.42,202.36,4.66573867]
[1757032465228,5.51259774,202.42,202.35,7.55]
[1757032465430,5.51259774,202.42,202.36,4.66529777]
[1757032465726,5.51259774,202.42,202.35,7.55]
[1757032465920,5.51259774,202.45,202.38,7.55]
[1757032466324,5.51259774,202.46,202.39,4.66320862]
[1757032466530,5.51259774,202.48,202.43,2.14987052]
[1757032466828,7.65,202.52,202.47,2.14987052]
[1757032467125,7.65,202.52,202.48,7.55]
[1757032467329,7.65,202.55,202.43,7.55]
[1757032467527,7.65,202.55,202.46,2.14987052]
[1757032467826,7.65,202.55,202.47,12.20550411]
[1757032468031,7.65,202.55,202.48,4.65550411]
[1757032468230,7.65,202.59,202.5,7.55]
[1757032470631,7.65,202.59,202.52,0.03159517]
[1757032470830,7.68577189,202.57,202.52,7.58159517]
[1757032472636,7.68577189,202.57,202.53,7.55]
[1757032472835,0.03577189,202.57,202.53,7.55]
[1757032473632,0.03577189,202.57,202.52,2.18146569]
[1757032473829,0.03577189,202.57,202.53,7.55]
[1757032474025,0.03577189,202.57,202.52,2.18146569]
[1757032474428,0.03577189,202.57,202.53,7.55]
[1757032475130,0.03577189,202.57,202.52,2.18146569]
[1757032475534,0.03577189,202.57,202.53,7.55]
[1757032475732,7.68577189,202.57,202.53,7.55]
[1757032476733,7.68577189,202.57,202.52,2.18146569]
[1757032476939,0.03577189,202.57,202.52,2.18146569]
[1757032477628,0.03577189,202.57,202.53,7.55]
[1757032477834,0.03577189,202.57,202.52,2.18146569]
[1757032478036,0.03577189,202.57,202.53,7.55]
[1757032478440,0.03577189,202.57,202.52,2.18146569]
[1757032478642,0.03577189,202.57,202.53,7.55]
[1757032479144,0.03577189,202.57,202.52,2.18146569]
[1757032479334,0.03577189,202.57,202.53,7.55]
[1757032479534,0.03577189,202.57,202.52,2.18146569]
[1757032480636,0.03577189,202.57,202.53,7.55]
[1757032480836,0.03577189,202.57,202.52,2.18146569]
[1757032481339,0.03577189,202.57,202.53,7.55]
[1757032481538,0.03577189,202.57,202.52,2.18146569]
[1757032481941,0.03577189,202.57,202.53,7.55]
[1757032482140,0.03577189,202.57,202.56,7.55]
[1757032494649,8.09,202.66,202.57,8.07]
[1757032494844,8.09,202.66,202.6,8.07]
[1757032495753,8.09,202.66,202.61,0.03456493]
[1757032495949,8.09,202.68,202.61,0.03456493]
[1757032502063,8.09,202.68,202.62,8.07]
[1757032502953,8.09,202.68,202.61,2.18443545]
[1757032502954,8.09,202.68,202.65,8.07]
[1757032504164,124.0,202.81,202.64,10.21987052]
[1757032504165,121.34,202.78,202.64,10.21987052]
[1757032504366,8.09,202.76,202.65,4.66675216]
[1757032504668,8.09,202.76,202.68,0.03575371]
[1757032507164,8.09,202.76,202.69,4.67971396]
[1757032507468,8.09,202.76,202.68,0.03575371]
[1757032508166,8.09,202.76,202.69,4.68562143]
[1757032508368,8.09,202.76,202.68,0.03575371]
[1757032508558,8.09,202.76,202.69,4.6850205]
[1757032508866,8.09,202.76,202.68,0.03575371]
[1757032509058,8.09,202.76,202.69,4.6850205]
[1757032509257,8.09,202.76,202.68,0.03575371]
[1757032509258,8.09,202.76,202.7,4.6850205]
[1757032509466,8.09,202.76,202.68,0.03575371]
[1757032509666,8.09,202.76,202.69,4.69001639]
[1757032509866,8.09,202.76,202.7,4.69001639]
[1757032510062,8.09,202.76,202.71,4.6897355]
[1757032510265,8.09,202.82,202.73,8.07]
[1757032510463,8.09,202.82,202.74,4.6897355]
[1757032510664,8.09,202.82,202.75,4.6897355]
[1757032510865,8.09,202.82,202.76,4.72530127]
[1757032511066,8.09,202.82,202.77,4.6897355]
[1757032511262,8.09,202.82,202.76,0.03556577]
[1757032511463,8.09,202.82,202.77,4.69635531]
[1757032511663,8.09,202.82,202.76,0.03556577]
[1757032511864,8.09,202.82,202.77,4.69635531]
[1757032512164,8.09,202.82,202.76,0.03556577]
[1757032512365,8.09,202.82,202.77,4.69592816]
[1757032512566,8.09,202.82,202.76,0.03556577]
[1757032512770,8.09,202.82,202.77,4.69592816]
[1757032512970,8.09,202.82,202.76,0.03556577]
[1757032513268,8.09,202.82,202.77,4.69592816]
[1757032513466,8.09,202.82,202.76,0.03556577]
[1757032513666,8.09,202.82,202.77,4.6945534]
[1757032513866,8.09,202.82,202.76,0.03556577]
[1757032514063,8.09,202.82,202.77,4.6945534]
[1757032514376,8.09,202.82,202.76,0.03556577]
[1757032516465,8.09,202.8,202.76,0.03556577]
[1757032516868,8.09,202.77,202.76,0.03556577]
[1757032517472,9.46121114,202.77,202.76,0.03556577]
[1757032521077,9.96121114,202.77,202.67,8.07]
[1757032521274,9.05121114,202.73,202.67,8.07]
[1757032521767,1.37121114,202.71,202.65,1.37121114]
[1757032521972,9.05121114,202.71,202.63,8.94121114]
[1757032522574,7.68,202.75,202.69,1.37121114]
[1757032524773,1.37121114,202.77,202.69,1.37121114]
[1757032524975,1.37121114,202.77,202.7,7.57]
[1757032525176,9.05121114,202.75,202.69,1.37121114]
[1757032525572,7.68,202.75,202.67,7.57]
[1757032525776,1.37121114,202.74,202.67,8.94121114]
[1757032527071,1.37121114,202.72,202.67,7.57]
[1757032527272,1.37121114,202.72,202.65,1.37121114]
[1757032527478,1.37121114,202.7,202.63,8.94121114]
[1757032527675,1.37121114,202.7,202.64,4.5961886]
[1757032527870,1.37121114,202.72,202.66,7.57]
[1757032529479,7.68,202.73,202.67,1.37121114]
[1757032529776,1.37121114,202.74,202.67,1.37121114]
[1757032529976,1.37121114,202.74,202.68,7.57]
[1757032530179,5.51259774,202.77,202.67,1.37121114]
[1757032530377,1.37121114,202.75,202.68,7.57]
[1757032530681,1.37121114,202.76,202.69,1.37121114]
[1757032532580,1.37121114,202.76,202.68,8.94121114]
[1757032533579,1.37121114,202.74,202.68,7.57]
[1757032534184,1.37121114,202.74,202.69,4.59976642]
[1757032534390,1.37121114,202.74,202.68,7.57]
[1757032534681,1.37121114,202.74,202.69,4.59996791]
[1757032534886,1.37121114,202.74,202.68,7.57]
[1757032535186,7.68,202.77,202.67,1.37121114]
[1757032535187,1.37121114,202.75,202.69,12.16996791]
[1757032535480,7.68,202.77,202.71,8.94121114]
[1757032535683,1.37121114,202.76,202.7,7.57]
[1757032536083,1.37121114,202.76,202.71,4.60071172]
[1757032536281,1.37121114,202.76,202.7,7.57]
[1757032536483,1.37121114,202.76,202.71,4.60152899]
[1757032536681,1.37121114,202.76,202.69,1.37121114]
[1757032536889,7.68,202.77,202.71,1.37121114]
[1757032537089,1.37121114,202.79,202.72,12.17152899]
[1757032537283,7.68,202.8,202.74,7.57]
[1757032537479,13.19259774,202.84,202.77,1.37121114]
[1757032537679,9.05121114,202.84,202.77,1.37121114]
[1757032537883,1.37121114,202.86,202.79,1.37121114]
[1757032538087,1.37121114,202.86,202.78,7.57]
[1757032538288,7.68,202.87,202.8,8.94121114]
[1757032538591,9.05121114,202.87,202.8,8.94121114]
[1757032541193,7.68,202.87,202.82,1.37121114]
[1757032541384,7.68,202.84,202.69,7.57]
[1757032541586,1.37121114,202.83,202.75,8.94121114]
[1757032541782,1.37121114,202.83,202.76,4.59632113]
[1757032541988,1.37121114,202.83,202.77,4.59632113]
[1757032542188,1.37121114,202.83,202.77,1.37121114]
[1757032542394,9.05121114,202.84,202.77,1.37121114]
[1757032543191,9.05121114,202.84,202.77,8.94121114]
[1757032543192,7.68,202.84,202.77,8.94121114]
[1757032543386,7.68,202.84,202.78,1.37121114]
[1757032543591,5.51259774,202.87,202.79,7.57]
[1757032543889,7.68,202.85,202.79,7.57]
[1757032544092,7.68,202.85,202.77,1.37121114]
[1757032544394,1.37121114,202.84,202.77,1.37121114]
[1757032544892,7.68,202.85,202.77,1.37121114]
[1757032545092,1.37121114,202.84,202.77,1.37121114]
[1757032545292,1.37121114,202.82,202.75,7.57]
[1757032545489,1.37121114,202.81,202.75,7.57]
[1757032545795,9.05121114,202.81,202.75,7.57]
[1757032545995,5.51259774,202.84,202.7,44.68]
[1757032545996,1.37121114,202.79,202.71,8.94121114]
[1757032546194,1.37121114,202.79,202.72,4.59701819]
[1757032546393,1.37121114,202.79,202.71,8.94121114]
[1757032546596,1.37121114,202.79,202.73,7.57]
[1757032547690,1.37121114,202.77,202.74,0.03731628]
[1757032547895,1.37121114,202.77,202.74,7.86731628]
[1757032548099,1.40844435,202.78,202.74,7.86731628]
[1757032548289,0.03723321,202.78,202.77,9.20121114]
[1757032548485,0.03723321,202.78,202.74,0.03731628]
[1757032548687,0.03723321,202.78,202.74,1.40852742]
[1757032548889,0.03723321,202.78,202.75,7.83]
[1757032549288,0.03723321,202.78,202.75,1.37121114]
[1757032549893,0.03723321,202.78,202.76,7.83]
[1757032550092,0.03723321,202.78,202.75,1.37121114]
[1757032550488,0.03723321,202.78,202.74,0.03731628]
[1757032550690,0.03723321,202.78,202.76,7.83]
[1757032550888,0.03723321,202.78,202.75,5.97175868]
[1757032551087,0.03723321,202.78,202.75,1.37121114]
[1757032551490,0.03723321,202.78,202.76,7.83]
[1757032551992,0.03723321,202.78,202.75,1.37121114]
[1757032552193,0.03723321,202.78,202.76,7.83]
[1757032552390,0.03723321,202.78,202.75,1.37121114]
[1757032552592,0.03723321,202.78,202.76,7.83]
[1757032552790,0.03723321,202.78,202.75,1.37121114]
[1757032552996,0.03723321,202.78,202.76,7.83]
[1757032553392,0.03723321,202.78,202.75,1.37121114]
[1757032554093,0.03723321,202.78,202.76,7.83]
[1757032554289,0.03723321,202.78,202.75,1.37121114]
[1757032554494,0.03723321,202.78,202.77,7.83]
[1757032554998,0.03723321,202.78,202.77,9.20121114]
[1757032555692,0.03723321,202.78,202.77,13.8024701]
[1757032555898,0.03723321,202.78,202.77,9.20121114]
[1757032557494,0.03723321,202.78,202.77,13.80147561]
[1757032557801,0.03723321,202.78,202.77,12.43026447]
[1757032558691,0.03723321,202.78,202.77,7.83]
[1757032558891,0.03723321,202.78,202.77,12.42923616]
[1757032559400,0.03723321,202.78,202.77,13.8004473]
[1757032560603,0.03723321,202.78,202.77,12.42923616]
[1757032564202,0.03723321,202.78,202.77,7.83]
[1757032565206,0.03723321,202.78,202.76,7.83]
[1757032565707,0.03723321,202.78,202.77,9.20121114]
[1757032567404,0.03723321,202.78,202.77,13.80030903]
[1757032568107,0.03723321,202.78,202.77,13.80035425]
[1757032568501,0.03723321,202.78,202.77,9.20121114]
[1757032568705,0.03723321,202.78,202.77,13.80067298]
[1757032571316,0.03723321,202.78,202.77,13.79666752]
[1757032571615,1.37121114,202.85,202.77,13.79666752]
[1757032571616,7.89,202.88,202.77,5.96666752]
[1757032571815,7.89,202.88,202.82,1.37121114]
[1757032572917,1.37121114,202.89,202.83,0.03361991]
[1757032573122,7.89,202.88,202.83,0.03361991]
[1757032573328,1.37121114,202.89,202.83,0.03361991]
[1757032574121,7.89,202.89,202.83,0.03361991]
[1757032574328,7.89,202.89,202.85,7.83]
[1757032574726,1.37121114,202.91,202.85,7.83]
[1757032575021,7.89,202.9,202.85,7.83]
[1757032575227,1.37121114,202.91,202.85,7.83]
[1757032575527,9.26121114,202.91,202.85,7.83]
[1757032575728,1.37121114,202.89,202.83,0.03361991]
[1757032575921,7.89,202.86,202.83,0.03361991]
[1757032576122,7.89,202.91,202.83,0.03361991]
[1757032576323,7.89,202.87,202.8,1.37121114]
[1757032576521,7.89,202.87,202.85,0.03703825]
[1757032576727,1.37121114,202.88,202.85,0.03703825]
[1757032576928,5.51259774,202.92,202.85,0.03703825]
[1757032577227,7.89,202.86,202.85,0.03703825]
[1757032579627,7.89,202.86,202.75,7.99]
[1757032579628,8.39,202.86,202.75,7.99]
[1757032579828,7.89,202.86,202.76,4.60601019]
[1757032580028,7.71,202.83,202.77,4.60601019]
[1757032580230,2.13974621,202.84,202.71,7.99]
[1757032580231,7.71,202.8,202.71,7.99]
[1757032580426,7.71,202.8,202.72,4.6104936]
[1757032580619,7.71,202.8,202.73,4.6104936]
[1757032580923,7.71,202.8,202.74,4.6104936]
[1757032581125,2.13974621,202.81,202.75,4.6104936]
[1757032581323,2.13974621,202.81,202.76,4.6104936]
[1757032581530,7.71,202.8,202.77,4.6104936]
[1757032581827,7.71,202.8,202.71,7.99]
[1757032582030,7.71,202.8,202.72,4.610764]
[1757032582226,7.71,202.8,202.73,4.610764]
[1757032582523,7.71,202.8,202.74,4.610764]
[1757032582728,7.71,202.8,202.75,4.610764]
[1757032582930,7.71,202.8,202.76,4.610764]
[1757032583121,7.71,202.8,202.77,4.610764]
[1757032583326,7.71,202.8,202.71,7.99]
[1757032583527,7.71,202.8,202.72,4.61156403]
[1757032583725,7.71,202.8,202.73,4.61156403]
[1757032583928,7.71,202.8,202.74,4.61156403]
[1757032584126,7.71,202.81,202.75,4.61156403]
[1757032584329,7.71,202.82,202.76,4.61156403]
[1757032584526,7.71,202.82,202.77,4.61156403]
[1757032584731,7.71,202.82,202.78,4.61156403]
[1757032585031,7.71,202.82,202.74,7.99]
[1757032585226,7.71,202.82,202.75,4.61076709]
[1757032585432,7.71,202.82,202.76,4.61076709]
[1757032585728,7.71,202.82,202.77,4.61076709]
[1757032585928,7.71,202.82,202.78,4.61076709]
[1757032586132,7.71,202.82,202.74,7.99]
[1757032586332,7.71,202.82,202.75,4.60992435]